[Event "21st Bangkok CC Open 2024"]
[Site "Bangkok"]
[Date "2024.04.13"]
[Round "1.7"]
[White "Dinesh Rajan M"]
[Black "Lalit Babu M R"]
[Result "0-1"]
[ECO "C54"]
[WhiteElo "1948"]
[BlackElo "2508"]
[Annotator "TA"]
[PlyCount "90"]
[EventDate "2024.04.13"]
[EventType "swiss"]
[EventCountry "THA"]
[SourceTitle "playchess.com"]
[Source "ChessBase"]
[SourceQuality "1"]
[TimeControl "40/5400+30:1800+30"]

{[%evp 9,90,10,1,-50,-36,-70,-69,-82,-64,-55,-79,-53,29,35,19,0,34,0,0,18,20,0,0,14,20,0,0,0,0,0,0,0,0,-143,-114,-103,-25,-14,-21,-8,-18,-11,2,0,0,0,37,17,18,4,10,0,5,0,0,0,6,0,0,-553,-526,-547,-539,-541,-541,-534,-368,-326,-179,-174,-187,-170,0,0,0,-902,-560,-29986,-29987,-29989,-29990,-29990,-29991]} 1. e4 {[%emt 0:04:39]} e5 {[%emt 0:00:08]} 2. Nf3 {[%emt 0:00:20]} Nc6 {[%emt 0:00:05]} 3. Bc4 {[%emt 0:00:08]} Bc5 {[%emt 0:00:07]} 4. c3 {[%emt 0:00:18]} Nf6 {[%emt 0:00:07]} 5. d4 {[%emt 0:00:47]} exd4 {[%emt 0:00:15]} 6. b4 {[%emt 0:00:39]} (6. e5 $11 d5 7. Bb5) 6... Bb6 $15 {[%emt 0:09:05]} 7. e5 {[%emt 0:01:51][%cal Be4e5,Be5f6,Bf6g7][%mdl 32]} d5 {[%emt 0:00:39]} 8. exf6 {[%emt 0:00:21] Black is slightly better.} dxc4 {[%emt 0:00:03]} 9. Qe2+ {[%emt 0:00:14]} Be6 {[%emt 0:00:31]} 10. b5 {[%emt 0:00:23]} d3 {[%emt 0:13:14]} (10... Na5 $1 $15 11. fxg7 Rg8 12. Nxd4 Rxg7 13. Nxe6 fxe6) 11. Qe4 $1 $11 {[%emt 0:01:04]} Nb4 {[%emt 0:01:40]} 12. O-O $1 {[%emt 0:17:55]} Nc2 {[%emt 0:05:54]} (12... Qxf6 $6 13. Bg5 Qg6 14. Qxg6 hxg6 15. cxb4 $16) 13. fxg7 {[%emt 0:00:13]} Rg8 {[%emt 0:00:02]} 14. Bg5 {[%emt 0:22:29]} Qd5 {[%emt 0:10:58]} 15. Qxh7 {[%emt 0:00:49]} Kd7 $36 {[%emt 0:07:13][%cal Oe6f5][%mdl 2048] White must now prevent ...Bf5! Black has the initiative.} 16. Nbd2 $1 {[%emt 0:09:32]} Bf5 {[%emt 0:05:24] Some like it hot} 17. Qh4 {[%emt 0:02:19][%cal Og5f6] Hoping for Bf6!} (17. Qh5 $5 Bg6 (17... Rxg7 18. Bf6 $11) 18. Qh3+ Bf5 19. g4 Rxg7 20. gxf5 Rxg5+ (20... f6 21. Qh6 $16) 21. Nxg5 $11) 17... Nxa1 {[%emt 0:06:29]} (17... Rxg7 $6 18. Rfe1 Nxe1 (18... Qxb5 $2 19. Ne5+ $18) 19. Rxe1 Rxg5 (19... Qxb5 $2 20. Ne5+ $18) 20. Ne5+ Kc8 21. Qxg5 $18) 18. Rxa1 {[%emt 0:07:50]} Rae8 {[%emt 0:00:29]} (18... Qxb5 $2 19. Re1 Be6 (19... Rxg7 $2 20. Ne5+ $18) 20. Ne5+ Kc8 21. Qh7 Bxf2+ (21... Qe8 $2 22. Ne4 $18) 22. Kxf2 $18) 19. Bf6 {[%emt 0:04:35]} Qxb5 {[%emt 0:00:48]} 20. Qh5 {[%emt 0:05:35][%cal Og2g4] Threatens to win with g4!} Kc8 {[%emt 0:03:05] ...Bd7 is the strong threat.} 21. Qxf7 {[%emt 0:00:50]} (21. Re1 $1 $11 Rxe1+ 22. Nxe1) 21... Be6 $17 {[%emt 0:02:55]} 22. Qg6 {[%emt 0:00:07]} Qf5 {[%emt 0:00:19]} (22... Bd5 $17 {...Bxf3 would now be deadly.} 23. Qg5 a6) 23. Qxf5 $11 {[%emt 0:02:59]} Bxf5 {[%emt 0:00:16]} 24. Nxc4 {[%emt 0:02:44]} Bc5 {[%emt 0:00:07]} 25. Nd4 {[%emt 0:02:12] Wards off Re2} Bxd4 {[%emt 0:07:11]} 26. Bxd4 {[%emt 0:02:39][%cal Oc4e3]} Re2 {[%emt 0:00:06]} 27. Kf1 $1 {[%emt 0:01:28]} Be6 {[%emt 0:01:16]} 28. Ne3 {[%emt 0:01:22]} c5 $1 {[%emt 0:00:20]} 29. Bf6 {[%emt 0:00:39]} Kd7 {[%emt 0:11:34][%cal Od7e8]} 30. Rd1 {[%emt 0:01:21]} c4 {[%emt 0:00:53]} 31. h4 {[%emt 0:01:09]} Ke8 {[%emt 0:02:11][%cal Oe8f7]} 32. g4 {[%emt 0:03:11]} Kf7 {[%emt 0:00:12]} 33. Bd4 {[%emt 0:00:57]} Rd8 {[%emt 0:00:12]} 34. Kg2 $2 {[%emt 0:00:43][%mdl 8192] [#]} (34. h5 $11) 34... Rxd4 $1 $19 {[%emt 0:07:29][%mdl 512]} 35. cxd4 {[%emt 0:01:03] [#] aiming for d5.} Rxe3 $1 {[%emt 0:00:41]} (35... Kxg7 36. Kf3 $11) 36. fxe3 {[%emt 0:00:02]} Bxg4 {[%emt 0:00:04][%mdl 4096] Endgame. KR-KB} 37. Rd2 {[%emt 0:00:14]} Bf5 {[%emt 0:00:22][%cal Oc4c3]} 38. Kf1 {[%emt 0:02:39] And now Rf2 would win.} (38. Rf2 c3 39. Rxf5+ Kxg7) 38... c3 {[%emt 0:00:48]} 39. Rg2 {[%emt 0:00:05]} (39. Rf2 $2 c2 40. Rxf5+ Kxg7 $19) 39... Kg8 {[%emt 0:00:04][%mdl 1024] Black has strong compensation.} 40. Ke1 {[%emt 0:00:09]} Bd7 $2 {[%emt 0:00:11]} (40... Be4 $19 41. Rf2 Kxg7) 41. Rg1 $11 {[%emt 0:30:31]} Be8 {[%emt 0:30:09]} 42. d5 $2 {[%emt 0:00:21][%mdl 8192]} (42. Rg5 $11) 42... Bh5 $19 {[%emt 0:00:33] ( -> ...d2+)} 43. Kf2 {[%emt 0:01:39]} d2 {[%emt 0:00:36] Black mates.} 44. d6 {[%emt 0:00:47]} c2 {[%emt 0:00:03]} (44... d1=R $2 {loses.} 45. Rxd1 Kxg7 46. d7 Bxd1 47. d8=Q $18 (47. d8=R c2 $18)) 45. d7 {[%emt 0:00:35]} d1=Q {[%emt 0:00:05] Weighted Error Value: White=0.40/Black=0.16 (very precise) .  Loses game:     	White=2     	---        Missed win:     	---       	Black=1      Mistake:       	White=1     	Black=2      Inaccurate:     	White=2     	Black=2      OK:         	White=14    	Black=15     Best:        	White=3     	Black=6      Strong:       	White=4     	Black=2      Brilliant:      	---       	Black=1} 0-1

[Event "21st Bangkok CC Open 2024"]
[Site "Bangkok"]
[Date "2024.04.13"]
[Round "1.8"]
[White "Das, Sayantan"]
[Black "Jain, Kushagra"]
[Result "1-0"]
[ECO "B52"]
[WhiteElo "2507"]
[BlackElo "1942"]
[Annotator "TA"]
[PlyCount "63"]
[EventDate "2024.04.13"]
[EventType "swiss"]
[EventCountry "THA"]
[SourceTitle "playchess.com"]
[Source "ChessBase"]
[SourceQuality "1"]
[TimeControl "40/5400+30:1800+30"]

{[%evp 9,63,7,23,10,23,0,3,4,7,17,9,0,0,0,22,0,-10,-22,0,0,19,14,12,18,26,20,35,15,27,30,37,43,54,12,36,0,0,0,30,14,125,122,391,381,386,377,605,587,553,562,610,606,617,603,741,741]} 1. e4 {[%emt 0:00:13]} c5 {[%emt 0:00:14]} 2. Nf3 {[%emt 0:00:07]} d6 {[%emt 0:00:06]} 3. Bb5+ {[%emt 0:00:18]} Bd7 {[%emt 0:00:12]} 4. c4 {[%emt 0:00:51]} Nf6 {[%emt 0:05:22]} 5. Nc3 {[%emt 0:00:18]} g6 {[%emt 0:01:36]} 6. O-O {[%emt 0:01:31]} Bg7 {[%emt 0:00:14]} 7. d3 {[%emt 0:02:52]} O-O {[%emt 0:01:00]} 8. Be3 {[%emt 0:01:34] The position is equal.} Nc6 {[%emt 0:14:47]} 9. h3 {[%emt 0:01:37]} a6 {[%emt 0:03:01]} 10. Ba4 {[%emt 0:01:17]} Rb8 {[%emt 0:04:06]} 11. Rb1 {[%emt 0:02:28]} e5 {[%emt 0:19:12]} 12. Bg5 {[%emt 0:09:57]} h6 {[%emt 0:06:06]} 13. Bxf6 {[%emt 0:00:28]} Bxf6 {[%emt 0:00:44]} 14. a3 {[%emt 0:00:41]} Bg7 {[%emt 0:04:57]} 15. b4 {[%emt 0:03:03]} cxb4 {[%emt 0:02:13]} 16. axb4 {[%emt 0:00:19]} f5 {[%emt 0:00:24]} 17. b5 {[%emt 0:12:20]} axb5 {[%emt 0:01:43]} 18. Bxb5 {[%emt 0:02:20]} g5 {[%emt 0:07:07]} 19. Nh2 {[%emt 0:12:05]} Kh7 {[%emt 0:10:57]} 20. Ba4 {[%emt 0:09:21]} Be6 {[%emt 0:10:13]} 21. Qd2 {[%emt 0:10:47]} Nd4 {[%emt 0:00:49]} 22. Bd1 {[%emt 0:00:09]} Qa5 {[%emt 0:02:01]} 23. Qe1 {[%emt 0:10:20]} Qc5 {[%emt 0:04:14]} 24. Nf3 {[%emt 0:03:24]} Rfc8 {[%emt 0:00:33]} (24... g4 $11 25. exf5 gxf3 26. fxe6 fxg2 27. Kxg2 Nxe6) 25. exf5 $16 {[%emt 0:03:06]} Nxf5 $2 {[%emt 0:00:28][%mdl 8192] This costs Black the game.} (25... Bxf5 $16 26. Ne4 Nxf3+ 27. Bxf3 Qc7) 26. Ne4 {[%emt 0:01:38]} Qa3 {[%emt 0:00:35][%cal Oh7h8]} 27. Rb3 {[%emt 0:01:06]} Qa2 {[%emt 0:00:29] [#]} (27... Qa7 28. Nfxg5+ hxg5 29. Nxg5+ Kh8 30. Nxe6 Re8) 28. Nexg5+ $1 $18 {[%emt 0:00:59][%mdl 512] White is clearly winning.} hxg5 {[%emt 0:00:10]} 29. Nxg5+ {[%emt 0:00:02]} Kg8 {[%emt 0:00:05]} 30. Nxe6 {[%emt 0:00:08]} Re8 {[%emt 0:00:44]} 31. Nxg7 {[%emt 0:00:35]} Kxg7 {[%emt 0:00:15]} 32. Qe4 {[%emt 0:00:42][%csl LRb7,LRf5] Weighted Error Value: White=0.09 (flawless) /Black=0.39.  Loses game:     	---       	Black=1      Mistake:       	---       	Black=2      Inaccurate:     	White=3     	Black=1      OK:         	White=11    	Black=6} 1-0

[Event "21st Bangkok CC Open 2024"]
[Site "Bangkok"]
[Date "2024.04.13"]
[Round "1.9"]
[White "Mejia, Cherry Ann"]
[Black "Sengupta, Deep"]
[Result "0-1"]
[ECO "C01"]
[WhiteElo "1941"]
[BlackElo "2500"]
[Annotator "RC"]
[PlyCount "142"]
[EventDate "2024.04.13"]
[EventType "swiss"]
[EventCountry "THA"]
[SourceTitle "playchess.com"]
[Source "ChessBase"]
[SourceQuality "1"]
[TimeControl "40/5400+30:1800+30"]

1. e4 {[%emt 0:00:12]} e6 {[%emt 0:00:17]} 2. d4 {[%emt 0:00:46]} d5 {[%emt 0:00:05]} 3. Bd3 {[%emt 0:00:47]} c5 {[%emt 0:00:19]} 4. exd5 {[%emt 0:01:12]} exd5 {[%emt 0:00:05]} 5. Nc3 {[%emt 0:02:48]} c4 {[%emt 0:06:47]} 6. Be2 {[%emt 0:01:37]} Nc6 {[%emt 0:00:20]} 7. Bf3 {[%emt 0:03:32]} Bb4 {[%emt 0:00:27]} 8. Nge2 {[%emt 0:01:33]} Be6 {[%emt 0:15:23]} 9. O-O {[%emt 0:03:21]} Nge7 {[%emt 0:03:39]} 10. a3 {[%emt 0:33:32]} Ba5 {[%emt 0:04:55]} 11. Nf4 {[%emt 0:10:18]} O-O {[%emt 0:01:07]} 12. Na4 {[%emt 0:16:03]} Bc7 {[%emt 0:13:06]} 13. Nc5 {[%emt 0:01:56]} Bc8 {[%emt 0:00:25]} 14. g3 {[%emt 0:13:33]} Bxf4 {[%emt 0:06:55]} 15. Bxf4 {[%emt 0:00:05]} Nf5 {[%emt 0:00:04]} 16. Be3 {[%emt 0:04:02]} Nce7 {[%emt 0:27:53]} 17. Qd2 {[%emt 0:01:25]} Qe8 {[%emt 0:04:45]} 18. b3 {[%emt 0:01:22]} b6 {[%emt 0:01:52]} 19. Na4 {[%emt 0:00:02]} Be6 {[%emt 0:00:09]} 20. Nc3 {[%emt 0:00:20]} cxb3 {[%emt 0:03:52]} 21. cxb3 {[%emt 0:00:01]} Qd7 {[%emt 0:00:04]} 22. Rac1 {[%emt 0:01:14]} Rfc8 {[%emt 0:00:19]} 23. a4 {[%emt 0:00:49]} h6 {[%emt 0:00:26]} 24. Ne2 {[%emt 0:00:35]} Nd6 {[%emt 0:00:56]} 25. Nf4 {[%emt 0:01:01]} Ne4 {[%emt 0:01:17]} 26. Qe2 {[%emt 0:00:41]} Bf5 {[%emt 0:02:22]} 27. Bg2 {[%emt 0:00:26]} Qd6 {[%emt 0:01:39]} 28. Qb2 {[%emt 0:00:35]} Nc6 {[%emt 0:02:29]} 29. f3 {[%emt 0:00:29]} Nf6 {[%emt 0:00:10]} 30. Bd2 {[%emt 0:00:29]} Re8 {[%emt 0:01:41]} 31. Rfe1 {[%emt 0:00:16]} g5 {[%emt 0:00:27]} 32. Nh3 {[%emt 0:00:26]} a5 {[%emt 0:00:26]} 33. Nf2 {[%emt 0:00:24]} Nb4 {[%emt 0:00:25]} 34. Bf1 {[%emt 0:00:58]} Kg7 {[%emt 0:00:35]} 35. Re5 {[%emt 0:00:22]} Bg6 {[%emt 0:00:36]} 36. Bxb4 {[%emt 0:00:06]} Qxb4 {[%emt 0:01:18]} 37. Bd3 {[%emt 0:00:16]} Rec8 {[%emt 0:00:40]} 38. Bxg6 {[%emt 0:00:35]} Rxc1+ {[%emt 0:00:38]} 39. Qxc1 {[%emt 0:00:01]} Qxd4 {[%emt 0:00:12]} 40. Re7 {[%emt 0:01:35]} Kxg6 {[%emt 0:00:06]} 41. Qc7 {[%emt 0:30:24]} Rf8 {[%emt 0:30:47]} 42. Kg2 {[%emt 0:00:28]} Kg7 {[%emt 0:00:00]} 43. Qc6 {[%emt 0:00:00]} g4 {[%emt 0:00:00]} 44. f4 {[%emt 0:00:00]} Qc5 {[%emt 0:00:00]} 45. Qxc5 {[%emt 0:00:00]} bxc5 {[%emt 0:00:00]} 46. Rc7 {[%emt 0:00:36]} Rb8 {[%emt 0:00:00]} 47. Rxc5 {[%emt 0:00:12]} Rb6 {[%emt 0:04:02]} 48. b4 Rxb4 {[%emt 0:00:00]} 49. Rxa5 {[%emt 0:00:50]} Rb3 {[%emt 0:00:00]} 50. Ra7 {[%emt 0:03:15]} Ra3 51. Ra8 {[%emt 0:00:00]} d4 {[%emt 0:00:00]} 52. a5 {[%emt 0:00:00]} Ra2 {[%emt 0:00:00]} 53. Kg1 {[%emt 0:00:25]} Nd5 {[%emt 0:00:34]} 54. Nxg4 {[%emt 0:00:43]} d3 {[%emt 0:00:02]} 55. Rd8 {[%emt 0:00:40]} d2 {[%emt 0:00:50]} 56. Nf2 {[%emt 0:00:32]} Ne3 {[%emt 0:00:14]} 57. h3 {[%emt 0:00:32]} Rxa5 {[%emt 0:00:50]} 58. Kh2 {[%emt 0:00:34]} Ra2 {[%emt 0:00:37]} 59. Kg1 {[%emt 0:00:24]} Ra1+ {[%emt 0:00:29]} 60. Kh2 {[%emt 0:00:01]} d1=Q {[%emt 0:02:54]} 61. Nxd1 {[%emt 0:00:03]} Rxd1 {[%emt 0:00:00]} 62. Ra8 {[%emt 0:00:49]} Rd2+ {[%emt 0:00:00]} 63. Kh1 {[%emt 0:00:23]} Nf5 {[%emt 0:00:45]} 64. Ra3 {[%emt 0:00:06]} h5 {[%emt 0:00:35]} 65. g4 {[%emt 0:00:41]} Nd4 {[%emt 0:00:08]} 66. f5 {[%emt 0:01:26]} h4 {[%emt 0:00:18]} 67. Kg1 {[%emt 0:00:36]} Kf6 {[%emt 0:00:06]} 68. Ra6+ {[%emt 0:00:25]} Kg5 {[%emt 0:00:05]} 69. Ra7 {[%emt 0:00:35]} Kf4 {[%emt 0:00:18]} 70. Ra3 {[%emt 0:00:31]} Nf3+ {[%emt 0:00:09]} 71. Kf1 {[%emt 0:00:09]} Kg3 {[%emt 0:00:07]} 0-1

[Event "21st Bangkok CC Open 2024"]
[Site "Bangkok"]
[Date "2024.04.13"]
[Round "1.10"]
[White "Zhao, Zong-Yuan"]
[Black "Doroy, Allanney Jia"]
[Result "1-0"]
[ECO "A40"]
[WhiteElo "2485"]
[BlackElo "1939"]
[Annotator "RC"]
[PlyCount "158"]
[EventDate "2024.04.13"]
[EventType "swiss"]
[EventCountry "THA"]
[SourceTitle "playchess.com"]
[Source "ChessBase"]
[SourceQuality "1"]
[TimeControl "40/5400+30:1800+30"]

1. e4 {[%emt 0:01:27]} c5 {[%emt 0:00:37]} 2. Nf3 {[%emt 0:00:05]} g6 {[%emt 0:00:05]} 3. d4 {[%emt 0:00:05]} cxd4 {[%emt 0:00:08]} 4. Nxd4 {[%emt 0:00:04]} Bg7 {[%emt 0:00:08]} 5. c4 {[%emt 0:00:04]} Qb6 {[%emt 0:01:35]} 6. Nb3 {[%emt 0:03:34]} Nc6 {[%emt 0:03:29]} 7. Be3 {[%emt 0:06:43]} Qd8 {[%emt 0:08:48]} 8. Qd2 {[%emt 0:01:49]} Nf6 {[%emt 0:00:16]} 9. Nc3 {[%emt 0:00:05]} O-O {[%emt 0:02:32]} 10. Be2 {[%emt 0:00:57]} d6 {[%emt 0:00:26]} 11. f3 {[%emt 0:03:22]} Be6 {[%emt 0:00:55]} 12. O-O {[%emt 0:00:11]} Rc8 {[%emt 0:04:37]} 13. Nd5 {[%emt 0:01:31]} Nd7 {[%emt 0:01:30]} 14. Rac1 {[%emt 0:03:42]} b6 {[%emt 0:01:39]} 15. Nd4 {[%emt 0:10:26]} Nxd4 {[%emt 0:13:59]} 16. Bxd4 {[%emt 0:00:49]} Bxd4+ {[%emt 0:00:31]} 17. Qxd4 {[%emt 0:00:03]} Ne5 {[%emt 0:00:19]} 18. f4 {[%emt 0:04:15]} Nc6 {[%emt 0:01:54]} 19. Qe3 {[%emt 0:00:02]} Qd7 {[%emt 0:02:01]} 20. Rc3 {[%emt 0:04:20]} f5 {[%emt 0:15:12]} 21. Bf3 {[%emt 0:22:22]} fxe4 {[%emt 0:13:00]} 22. Bxe4 {[%emt 0:00:55]} Rce8 {[%emt 0:01:39]} 23. Qd2 {[%emt 0:06:52]} Bf5 {[%emt 0:01:47]} 24. Nxb6 {[%emt 0:02:38]} axb6 {[%emt 0:02:37]} 25. Qd5+ {[%emt 0:00:05]} Qe6 {[%emt 0:05:39]} 26. Bxf5 {[%emt 0:05:54]} Qxd5 {[%emt 0:00:13]} 27. cxd5 {[%emt 0:00:02]} Rxf5 {[%emt 0:04:24]} 28. dxc6 {[%emt 0:01:28]} Rc8 {[%emt 0:00:07]} 29. b4 {[%emt 0:04:50]} b5 {[%emt 0:00:30]} 30. g3 {[%emt 0:10:30]} Kf7 {[%emt 0:00:20]} 31. Rb1 {[%emt 0:01:31]} Ke8 {[%emt 0:00:17]} 32. a4 {[%emt 0:00:08]} Kd8 {[%emt 0:00:08]} 33. a5 {[%emt 0:00:28]} Kc7 {[%emt 0:00:13]} 34. Re1 {[%emt 0:01:00]} Rf7 {[%emt 0:15:55]} 35. Re6 {[%emt 0:02:45]} Kd8 {[%emt 0:00:00]} 36. Kf2 {[%emt 0:01:38]} g5 {[%emt 0:00:00]} 37. Ke3 {[%emt 0:00:57]} gxf4+ {[%emt 0:00:00]} 38. gxf4 {[%emt 0:00:01]} Rg7 {[%emt 0:00:00]} 39. Rh6 {[%emt 0:01:02]} Kc7 {[%emt 0:00:00]} 40. Rh5 {[%emt 0:00:14]} Rb8 {[%emt 0:00:00]} 41. Rg5 {[%emt 0:30:42]} Rf7 {[%emt 0:21:06]} 42. Ke4 {[%emt 0:00:00]} e6 {[%emt 0:00:00]} 43. f5 {[%emt 0:00:00]} exf5+ {[%emt 0:00:00]} 44. Rxf5 {[%emt 0:00:00]} Re8+ {[%emt 0:00:00]} 45. Kf4 {[%emt 0:00:00]} Rxf5+ {[%emt 0:00:00]} 46. Kxf5 {[%emt 0:00:00]} Re2 {[%emt 0:00:00]} 47. h3 {[%emt 0:00:05]} Rb2 {[%emt 0:00:00]} 48. Ra3 {[%emt 0:00:56]} Kxc6 {[%emt 0:00:00]} 49. a6 {[%emt 0:00:16]} Rf2+ {[%emt 0:00:00]} 50. Ke4 {[%emt 0:01:06]} Re2+ {[%emt 0:00:00]} 51. Kf3 {[%emt 0:00:19]} Re8 {[%emt 0:00:00]} 52. a7 {[%emt 0:00:34]} Kb7 {[%emt 0:01:27]} 53. Ra5 {[%emt 0:00:16]} Ka8 {[%emt 0:01:43]} 54. Ra6 {[%emt 0:00:39]} Re6 {[%emt 0:01:58]} 55. h4 {[%emt 0:02:17]} Rh6 {[%emt 0:01:06]} 56. Kg4 {[%emt 0:00:13]} Rg6+ {[%emt 0:00:13]} 57. Kf5 {[%emt 0:00:47]} Rh6 {[%emt 0:00:20]} 58. Kg5 {[%emt 0:00:05]} Rg6+ {[%emt 0:00:08]} 59. Kh5 {[%emt 0:00:16]} Re6 {[%emt 0:00:14]} 60. Ra5 {[%emt 0:01:10]} Rf6 {[%emt 0:02:00]} 61. Rxb5 {[%emt 0:00:51]} Kxa7 {[%emt 0:00:05]} 62. Kg5 {[%emt 0:00:15]} Rg6+ {[%emt 0:00:24]} 63. Kf4 {[%emt 0:00:10]} Ka6 {[%emt 0:00:50]} 64. Rh5 {[%emt 0:00:03]} Rg7 {[%emt 0:01:11]} 65. Rd5 {[%emt 0:00:59]} Rg6 {[%emt 0:01:03]} 66. h5 {[%emt 0:01:10]} Re6 {[%emt 0:00:14]} 67. Kf5 {[%emt 0:00:22]} Rh6 {[%emt 0:00:05]} 68. Kg5 {[%emt 0:00:57]} Re6 {[%emt 0:00:02]} 69. h6 {[%emt 0:00:35]} Kb6 {[%emt 0:00:42]} 70. Rf5 {[%emt 0:00:01]} Rg6+ {[%emt 0:01:31]} 71. Kh5 {[%emt 0:00:01]} Rg1 {[%emt 0:00:12]} 72. Rf6 {[%emt 0:01:50]} Kc6 {[%emt 0:08:02]} 73. b5+ {[%emt 0:00:02]} Kc5 {[%emt 0:02:29]} 74. b6 {[%emt 0:00:36]} Rb1 {[%emt 0:01:56]} 75. Rf7 {[%emt 0:00:40]} Rh1+ {[%emt 0:00:30]} 76. Kg4 {[%emt 0:00:36]} Rxh6 {[%emt 0:00:32]} 77. b7 {[%emt 0:00:07]} Rg6+ {[%emt 0:00:01]} 78. Kf5 {[%emt 0:00:55]} Rg8 {[%emt 0:01:56]} 79. Rc7+ {[%emt 0:00:05]} Kd5 {[%emt 0:00:30]} 1-0

[Event "21st Bangkok CC Open 2024"]
[Site "Bangkok"]
[Date "2024.04.14"]
[Round "2.1"]
[White "Bernadskiy, Vitaliy"]
[Black "Kamalsyah, Muhammad"]
[Result "1-0"]
[ECO "B42"]
[WhiteElo "2561"]
[BlackElo "2177"]
[Annotator "TA"]
[PlyCount "81"]
[EventDate "2024.04.13"]
[EventType "swiss"]
[EventCountry "THA"]
[SourceTitle "playchess.com"]
[Source "ChessBase"]
[SourceQuality "1"]
[TimeControl "40/5400+30:1800+30"]

{[%evp 17,81,61,54,58,50,54,78,71,102,106,120,111,119,106,107,56,73,75,111,106,155,150,154,153,164,159,160,163,185,159,231,238,221,233,250,253,255,267,241,229,281,212,215,202,214,213,214,213,452,447,468,470,425,429,716,716,709,709,789,743,12139,11459,29966,10273,5636,5636]} 1. e4 {[%emt 0:00:04]} c5 {[%emt 0:00:12]} 2. Nf3 {[%emt 0:00:03]} e6 {[%emt 0:00:08]} 3. d4 {[%emt 0:01:39]} cxd4 {[%emt 0:00:09]} 4. Nxd4 {[%emt 0:00:03]} a6 {[%emt 0:00:09]} 5. Bd3 {[%emt 0:00:08]} Nf6 {[%emt 0:00:23]} 6. O-O {[%emt 0:00:40]} Qc7 {[%emt 0:00:32]} 7. Qe2 {[%emt 0:01:03]} d6 {[%emt 0:00:08]} 8. c4 {[%emt 0:00:11]} g6 {[%emt 0:00:19]} 9. Nc3 {[%emt 0:01:10]} Bg7 {[%emt 0:00:09]} 10. Bg5 {[%emt 0:06:13]} O-O {[%emt 0:01:07]} 11. Qd2 {[%emt 0:00:46]} Ng4 {[%emt 0:05:41][%cal Bf6g4,Bg4e5,Be5f7][%mdl 32]} 12. Be2 {[%emt 0:02:44] White is better.} Ne5 {[%emt 0:05:44]} 13. Rac1 {[%emt 0:01:05]} f6 {[%emt 0:28:46]} 14. Be3 {[%emt 0:02:06]} Nf7 {[%emt 0:09:44]} 15. f4 {[%emt 0:02:07]} Nc6 {[%emt 0:02:25]} 16. f5 {[%emt 0:00:23]} (16. Rfd1 $16) 16... Nxd4 $14 {[%emt 0:04:02]} 17. Qxd4 {[%emt 0:00:04] White stays focused until the end.} Qe7 {[%emt 0:11:26][%cal Re6f5]} 18. Rcd1 {[%emt 0:02:51] White is much more active.} b5 {[%emt 0:08:03]} (18... exf5 $142 19. exf5 Bxf5) 19. cxb5 $16 {[%emt 0:01:06]} axb5 {[%emt 0:00:20]} 20. Bxb5 {[%emt 0:01:33]} exf5 {[%emt 0:05:15]} 21. exf5 {[%emt 0:00:19]} Bxf5 {[%emt 0:00:49] [#]} 22. Nd5 $1 {[%emt 0:00:22]} Qe5 {[%emt 0:04:54]} 23. a4 {[%emt 0:01:40][%cal Ba2a4,Ba4a5,Ba5a6,Ba6a7][%mdl 32]} Kh8 {[%emt 0:01:39]} (23... Bc2 $16) 24. Qxe5 {[%emt 0:00:32]} (24. b4 Bc2 25. a5 Rab8) 24... Nxe5 {[%emt 0:02:08]} 25. Nb6 {[%emt 0:00:25][%csl LRa8,LRd6] Repels Bd7} Rad8 {[%emt 0:00:48]} 26. a5 {[%emt 0:00:04]} Be4 {[%emt 0:00:52]} 27. a6 {[%emt 0:00:10]} f5 {[%emt 0:02:54]} 28. a7 {[%emt 0:00:16]} Rf7 {[%emt 0:01:48]} 29. Bg5 {[%emt 0:02:05]} Rdf8 {[%emt 0:01:02]} 30. Ra1 {[%emt 0:00:27]} (30. Rxd6 Rxa7 31. Rd2 Rb8 $15) 30... Ng4 {[%emt 0:01:53] [#]} 31. Rfd1 {[%emt 0:01:19][%cal Ob5c4] Repels Bd4+. Bc4! would now be deadly.} (31. a8=R Bd4+ 32. Kh1 Bxb6 33. Rxf8+ Rxf8 $16) (31. a8=Q $6 Bxa8 32. Nxa8 Bd4+ (32... Bxb2 33. Ra4 $18) 33. Kh1 h6 $16) 31... Bxb2 {[%emt 0:01:42]} 32. Ra2 {[%emt 0:00:08]} (32. a8=R Bxa8 33. Rxa8 Rxa8 34. Nxa8 Rb7 $18) 32... Bc3 {[%emt 0:00:47]} (32... h6) 33. Bc4 $18 {[%emt 0:01:31]} (33. a8=B Bxa8 34. Rxa8 Rxa8 35. Nxa8 Rb7 $18) (33. Rxd6 Be5 34. Re6 (34. a8=Q Bxa8 35. Rd1 Bxh2+ 36. Kh1 Bb7 $17) 34... Bd4+ 35. Kf1 Kg7 $16) 33... Bb4 {[%emt 0:00:27]} 34. Bxf7 {[%emt 0:00:45] Threatens to win with Bd5.} (34. a8=N Bc5+ 35. Kh1 Rb7 $11) 34... Bc5+ {[%emt 0:00:16]} 35. Kf1 {[%emt 0:00:28] Black must now prevent Bd5.} (35. Kh1 Rxf7 36. a8=Q+ (36. a8=B Bxb6 37. Rxd6 Bc7 $11) 36... Bxa8 $18) 35... Bxb6 {[%emt 0:00:46]} (35... Rxf7 $142 36. a8=Q+ (36. a8=B Bxb6 37. h3 Ne3+ 38. Bxe3 Bxe3 $14) 36... Bxa8) 36. Bd5 {[%emt 0:00:31]} Bxd5 {[%emt 0:00:28]} 37. Rxd5 {[%emt 0:00:11]} Re8 {[%emt 0:00:28]} 38. Bf4 {[%emt 0:01:49]} (38. a8=R $2 Nxh2#) 38... Bxa7 {[%emt 0:00:35]} 39. Rxa7 {[%emt 0:00:05]} Kg8 {[%emt 0:00:00]} 40. h3 {[%emt 0:00:00]} ({Inferior is} 40. Bxd6 Ne3+ 41. Kg1 Nxd5 $15) (40. Rxd6 $142 g5 41. Bxg5 f4 42. h3 (42. Bxf4 Rf8 $18) 42... Ne5 43. Bf6 (43. Bxf4 Rf8 $18) 43... Nf7 44. Rdd7 Rf8 45. Be7) 40... Nf6 {[%emt 0:00:00]} 41. Rxd6 {[%emt 0:00:26] Weighted Error Value: White=0.08 (flawless) /Black=0.51.  Mistake:       	White=1     	Black=4      Inaccurate:     	---       	Black=2      OK:         	White=15    	Black=10     Best:        	White=1     	---} 1-0